bitfinex/quotes_BTCUSD_20250129
["timestamp","ask_amount","ask_price","bid_price","bid_amount"]
[1738121150533,0.26009327,101900.0,101890.0,0.13504254]
[1738121150781,0.18721705,101900.0,101890.0,0.10438546]
[1738121151255,0.41009327,101900.0,101890.0,0.10438546]
[1738121151700,0.82969327,101900.0,101890.0,0.0071423]
[1738121154651,0.79504319,101900.0,101890.0,0.0071423]
[1738121155760,0.80509251,101900.0,101890.0,0.0071423]
[1738121158892,0.85309251,101900.0,101890.0,0.0071423]
[1738121159116,0.95044927,101900.0,101890.0,0.0071423]
[1738121160824,0.85309251,101900.0,101890.0,0.0071423]
[1738121162626,0.72689251,101900.0,101890.0,0.0071423]
[1738121163450,0.72689251,101900.0,101890.0,0.10438546]
[1738121163451,0.60279015,101900.0,101890.0,0.10438546]
[1738121164210,0.59279015,101900.0,101890.0,0.10438546]
[1738121164588,0.60279015,101900.0,101890.0,0.10438546]
[1738121164791,0.44274083,101900.0,101890.0,0.25661882]
[1738121164996,0.32969883,101900.0,101890.0,0.33413746]
[1738121165156,0.00129883,101900.0,101890.0,0.46299324]
[1738121169683,0.00129883,101900.0,101890.0,0.5840956]
[1738121171063,0.00129883,101900.0,101890.0,1.07562306]
[1738121171496,0.00029883,101910.0,101900.0,0.49924436]
[1738121171672,0.00029883,101910.0,101900.0,2.42584731]
[1738121174083,0.00029883,101910.0,101900.0,2.43184731]
[1738121175332,0.00029883,101910.0,101900.0,2.44184731]
[1738121176956,0.00029883,101910.0,101900.0,2.43184731]
[1738121177137,0.00029883,101910.0,101900.0,2.44184731]
[1738121185125,0.00029883,101910.0,101900.0,2.44198961]
[1738121188424,0.00029883,101910.0,101900.0,2.43414961]
[1738121188628,0.00029883,101910.0,101900.0,2.44198961]
[1738121189947,0.00029883,101910.0,101900.0,2.97588961]
[1738121190410,0.00029883,101920.0,101900.0,2.97588961]
[1738121190411,0.00029883,101920.0,101910.0,0.273032]
[1738121190642,0.00029883,101920.0,101910.0,0.733491]
[1738121191555,0.00029883,101940.0,101930.0,0.103011]
[1738121191787,0.00029883,101940.0,101930.0,1.28189558]
[1738121191985,0.00029883,101940.0,101930.0,1.28091475]
[1738121194527,0.00029883,101940.0,101930.0,1.31134694]
[1738121194725,0.00029883,101940.0,101930.0,1.28091475]
[1738121195451,0.04619883,101940.0,101930.0,1.28875475]
[1738121196296,0.12439883,101940.0,101930.0,1.28875475]
[1738121198446,0.12439883,101940.0,101930.0,1.31925881]
[1738121198660,0.12439883,101940.0,101930.0,1.33929261]
[1738121203788,0.22739983,101940.0,101930.0,1.33929261]
[1738121204769,0.12439883,101940.0,101930.0,1.33929261]
[1738121208265,0.33850219,101940.0,101930.0,1.21624781]
[1738121208482,0.34850219,101940.0,101930.0,1.20840781]
[1738121208870,0.34850219,101940.0,101930.0,1.31141881]
[1738121210619,0.34850219,101940.0,101930.0,1.20840781]
[1738121210825,0.34850219,101940.0,101930.0,1.11024141]
[1738121211619,0.34850219,101940.0,101930.0,1.21325241]
[1738121211791,0.34850219,101940.0,101930.0,1.11024141]
[1738121212406,0.23739983,101940.0,101930.0,1.11024141]
[1738121212609,0.31022898,101940.0,101930.0,1.11024141]
[1738121218933,0.30022898,101940.0,101930.0,1.11024141]
[1738121219134,0.31022898,101940.0,101930.0,1.11024141]
[1738121220580,0.38305813,101940.0,101930.0,0.12774722]
[1738121220785,0.38305813,101940.0,101930.0,0.09724316]
[1738121223455,0.240511,101930.0,101920.0,0.0201423]
[1738121223663,0.4091693,101930.0,101920.0,0.11738546]
[1738121223869,0.5491693,101930.0,101920.0,0.0201423]
[1738121226472,0.47634015,101930.0,101920.0,0.0201423]
[1738121227346,0.5491693,101930.0,101920.0,0.0201423]
[1738121228920,0.8775693,101930.0,101920.0,0.0201423]
[1738121229698,0.80474015,101930.0,101920.0,0.0201423]
[1738121231132,0.81477282,101930.0,101920.0,0.0201423]
[1738121232887,0.80177282,101930.0,101920.0,0.11738546]
[1738121233087,0.67427282,101930.0,101920.0,0.11738546]
[1738121233362,0.66427282,101930.0,101920.0,0.11738546]
[1738121240134,0.3284,101930.0,101920.0,0.11738546]
[1738121240373,0.3284,101930.0,101920.0,1.20290065]
[1738121240574,0.3284,101930.0,101920.0,1.28600065]
[1738121240813,0.07312798,101940.0,101930.0,0.103011]
[1738121241070,0.00029883,101940.0,101930.0,0.20025416]
[1738121241328,0.00029883,101940.0,101930.0,0.42102676]
[1738121243120,0.00029883,101940.0,101930.0,1.01078997]
[1738121244508,0.00029883,101940.0,101930.0,0.93796082]
[1738121244749,0.00029883,101940.0,101930.0,0.94096082]
[1738121245506,0.00029883,101940.0,101930.0,0.9601717]
[1738121246871,0.00029883,101940.0,101930.0,1.2821717]
[1738121249902,0.00029883,101940.0,101930.0,1.55309978]
[1738121251473,0.00029883,101940.0,101930.0,1.55009978]
[1738121251683,0.00029883,101940.0,101930.0,1.56270955]
[1738121251904,0.00729883,101950.0,101930.0,1.48329978]
[1738121252139,0.00729883,101950.0,101940.0,0.29036483]
[1738121252340,0.00729883,101950.0,101940.0,1.30243109]
[1738121254714,0.00729883,101950.0,101940.0,1.27187835]
[1738121254837,0.00729883,101950.0,101940.0,1.30231921]
[1738121255480,0.00729883,101950.0,101940.0,1.27187835]
[1738121255676,0.00729883,101950.0,101940.0,1.59387835]
[1738121257865,0.00729883,101950.0,101940.0,1.60394733]
[1738121259120,0.00729883,101950.0,101940.0,1.77177541]
[1738121259326,0.00729883,101950.0,101940.0,1.80218876]
[1738121260685,0.00729883,101950.0,101940.0,1.77177541]
[1738121261257,0.00729883,101950.0,101940.0,1.80218905]
[1738121264671,0.00729883,101950.0,101940.0,1.76402862]
[1738121272001,0.00029883,101960.0,101940.0,1.76402862]
[1738121272199,0.00029883,101960.0,101950.0,0.20121479]
[1738121272414,0.00029883,101960.0,101950.0,0.3287971]
[1738121273570,0.00078096,101960.0,101950.0,0.3287971]
[1738121273781,0.00078096,101960.0,101950.0,0.3347971]
[1738121278166,0.00078096,101960.0,101950.0,0.82117842]
[1738121279304,0.00078096,101960.0,101950.0,0.84111228]
[1738121279717,0.00078096,101960.0,101950.0,0.91387993]
[1738121284430,0.00078096,101960.0,101950.0,0.84111228]
[1738121285302,0.00078096,101960.0,101950.0,1.16311228]
[1738121291648,0.00078096,101960.0,101950.0,1.17091228]
[1738121292405,0.00078096,101960.0,101950.0,1.1712109]
[1738121299391,0.00078096,101960.0,101950.0,1.39397855]
[1738121299967,0.00078096,101960.0,101950.0,1.40397855]
[1738121300131,0.00078096,101960.0,101950.0,1.47967855]
[1738121300329,0.1260425,101980.0,101970.0,0.102971]
[1738121300704,0.1260425,101980.0,101970.0,1.21312199]
[1738121301150,0.0777425,101980.0,101970.0,1.21312199]
[1738121301482,0.0001425,101980.0,101970.0,1.28588964]
[1738121301688,0.0001425,101980.0,101970.0,1.87040486]
[1738121302538,0.0001425,101980.0,101970.0,3.10117251]
[1738121302757,5.0,102000.0,101990.0,0.102951]
[1738121302983,5.00014459,102000.0,101990.0,1.87914557]
[1738121303236,5.00014459,102000.0,101990.0,1.88077447]
[1738121303687,5.00014459,102000.0,101990.0,2.29597447]
[1738121303903,5.00014459,102000.0,101990.0,2.44597447]
[1738121304742,5.00014459,102000.0,101990.0,2.44897447]
[1738121305189,5.00014459,102000.0,101990.0,2.44597447]
[1738121305357,5.00014459,102000.0,101990.0,2.45197447]
[1738121307457,5.00014459,102000.0,101990.0,2.46202733]
[1738121308781,5.00014459,102000.0,101990.0,2.50003432]
[1738121309528,5.00014459,102000.0,101990.0,2.31556812]
[1738121309944,5.00014459,102000.0,101990.0,2.16556812]
[1738121312223,5.00014459,102000.0,101990.0,2.15776812]
[1738121312515,5.00014459,102000.0,101990.0,2.16556812]
[1738121312723,5.00014459,102000.0,101990.0,2.13515448]
[1738121313268,5.00014459,102000.0,101990.0,2.16552071]
[1738121313951,5.00014459,102000.0,101990.0,2.15952071]
[1738121314325,5.00014459,102000.0,101990.0,2.12915448]
[1738121316395,5.00014459,102000.0,101990.0,2.280285]
[1738121316881,5.00014459,102000.0,101990.0,2.27767579]
[1738121317200,5.00028689,102000.0,101990.0,2.27767579]
[1738121320442,4.92671626,102000.0,101990.0,2.27767579]
[1738121321261,4.92671626,102000.0,101990.0,2.24731991]
[1738121321464,4.92671626,102000.0,101990.0,2.27766909]
[1738121321867,4.92671626,102000.0,101990.0,2.24731991]
[1738121322432,4.92671626,102000.0,101990.0,2.39731991]
[1738121322579,4.92671626,102000.0,101990.0,2.42767052]
[1738121322999,4.92671626,102000.0,101990.0,2.39731991]
[1738121323423,4.92671626,102000.0,101990.0,2.42766757]
[1738121327313,4.92671626,102000.0,101990.0,2.47516757]
[1738121330639,4.92671626,102000.0,101990.0,2.43708944]
[1738121333124,4.92671626,102000.0,101990.0,0.96821393]
[1738121333352,4.92671626,102000.0,101990.0,0.92071393]
[1738121340808,4.85314624,102000.0,101990.0,0.92101255]
[1738121345903,4.85314624,102000.0,101990.0,0.91101255]
[1738121347855,4.85314624,102000.0,101990.0,0.92101255]
[1738121348313,4.85314624,102000.0,101990.0,0.91101255]
[1738121349289,4.85314624,102000.0,101990.0,0.92101255]
[1738121350279,4.85314624,102000.0,101990.0,0.94401255]
[1738121350452,4.85314624,102000.0,101990.0,1.02071255]
[1738121350652,4.85314624,102000.0,101990.0,1.55461255]
[1738121352526,0.00028689,102000.0,101990.0,1.55461255]
[1738121354239,1e-08,102000.0,101990.0,1.60201255]
[1738121354410,0.0001424,102010.0,102000.0,0.422241]
[1738121354625,0.0001424,102010.0,102000.0,2.58640035]
[1738121354824,0.0001424,102010.0,102000.0,3.09269686]
[1738121355008,0.0001424,102010.0,102000.0,3.02000035]
[1738121355757,0.0001424,102010.0,102000.0,3.02600035]
[1738121361016,0.00029904,102030.0,102020.0,0.25292]
[1738121361221,0.00029904,102030.0,102020.0,2.02015864]
[1738121363234,0.08329904,102030.0,102020.0,2.02015864]
[1738121365505,0.08329904,102030.0,102020.0,2.34215864]
[1738121366227,0.08329904,102030.0,102020.0,2.36223243]
[1738121367996,0.08329904,102030.0,102020.0,2.37181873]
[1738121369187,0.08081249,102030.0,102020.0,2.37181873]
[1738121374827,0.1280424,102040.0,102020.0,2.37181873]
[1738121375039,0.12818728,102040.0,102030.0,0.20795316]
[1738121375264,0.12818728,102040.0,102030.0,0.23830082]
[1738121377117,0.12818728,102040.0,102030.0,0.20795316]
[1738121377898,0.12818728,102040.0,102030.0,0.20015316]
[1738121378104,0.12818728,102040.0,102030.0,0.20795316]
[1738121381433,0.12818728,102040.0,102030.0,0.23837829]
[1738121384503,0.12818728,102040.0,102030.0,0.23057829]
[1738121384703,0.12818728,102040.0,102030.0,0.23837829]
[1738121386418,0.12818728,102040.0,102030.0,0.23057829]
[1738121386621,0.12818728,102040.0,102030.0,0.23837829]
[1738121400318,0.12818728,102040.0,102030.0,0.23867691]
[1738121402893,0.30378379,102040.0,102030.0,0.23867691]
[1738121403282,0.23108728,102040.0,102030.0,0.23867691]
[1738121403485,0.30378379,102040.0,102030.0,0.23867691]
[1738121404037,0.20088379,102040.0,102030.0,0.23867691]
[1738121405199,0.30378379,102040.0,102030.0,0.23867691]
[1738121406519,0.3764803,102040.0,102030.0,0.12796691]
[1738121406719,0.3994803,102040.0,102030.0,0.00029862]
[1738121406858,0.8878803,102040.0,102030.0,0.00029862]
[1738121407057,0.8778803,102040.0,102030.0,0.00029862]
[1738121407299,0.88750342,102040.0,102030.0,0.00029862]
[1738121417469,0.88750342,102040.0,102030.0,0.00298634]
[1738121426168,0.63179993,102040.0,102030.0,0.00298634]
[1738121426551,0.72915669,102040.0,102030.0,0.00298634]
[1738121427646,0.55910342,102040.0,102030.0,0.00298634]
[1738121428004,0.56410342,102040.0,102030.0,0.00298634]
[1738121428818,0.55910342,102040.0,102030.0,0.00298634]
[1738121429023,0.56410342,102040.0,102030.0,0.00298634]
[1738121436086,0.74404309,102040.0,102030.0,0.00298634]
[1738121436289,0.84139985,102040.0,102030.0,0.00029862]
[1738121436718,0.85139985,102040.0,102030.0,6.2e-07]
[1738121436924,0.85139985,102040.0,102020.0,0.00029862]
[1738121436925,0.41321,102030.0,102020.0,6.3e-07]
[1738121437139,0.72854269,102030.0,102020.0,6.3e-07]
[1738121438131,0.47592751,102010.0,102000.0,0.00029862]
[1738121439341,0.62132053,102010.0,102000.0,0.00029862]
[1738121439621,0.72856369,102010.0,102000.0,0.00029862]
[1738121440628,0.73230878,102010.0,102000.0,0.00029862]
[1738121441543,0.73330878,102010.0,102000.0,0.00029862]
[1738121441750,0.82966554,102010.0,102000.0,0.00029862]
[1738121441949,0.83666554,102010.0,102000.0,0.00129862]
[1738121443013,0.85599449,102010.0,102000.0,0.00129862]
[1738121443217,0.84599449,102010.0,102000.0,0.00129862]
[1738121444153,0.85567731,102010.0,102000.0,0.00129862]
[1738121447295,0.86567731,102010.0,102000.0,0.00129862]
[1738121452449,0.88567731,102010.0,102000.0,6.2e-07]
[1738121452672,0.252951,101990.0,101980.0,0.00029883]
[1738121452862,0.64520657,101990.0,101980.0,0.00029883]
[1738121453482,0.75612388,101990.0,101980.0,0.00029883]
[1738121453684,0.74612388,101990.0,101980.0,8.3e-07]
[1738121453906,0.79324898,101990.0,101980.0,4.2e-07]
[1738121454136,0.79286323,101990.0,101980.0,4.2e-07]
[1738121454372,0.82398833,101990.0,101980.0,4.2e-07]
[1738121454730,0.252981,101960.0,101950.0,0.00029862]
[1738121454910,0.43932151,101960.0,101950.0,0.00029862]
[1738121455574,0.41219641,101960.0,101950.0,0.00029862]
[1738121458176,0.41519641,101960.0,101950.0,0.00029862]
[1738121460915,0.38989831,101960.0,101950.0,0.00029862]
[1738121461124,0.38989831,101960.0,101950.0,0.04809862]
[1738121462432,0.36689831,101960.0,101950.0,0.32633278]
[1738121462758,0.22689831,101960.0,101950.0,0.32633278]
[1738121462965,0.37689831,101960.0,101950.0,0.22334178]
[1738121464349,0.37689831,101960.0,101950.0,0.32633278]
[1738121464983,0.37689831,101960.0,101950.0,0.22334178]
[1738121465625,0.43198867,101960.0,101950.0,0.22334178]
[1738121465962,0.37689831,101960.0,101950.0,0.22334178]
[1738121467061,0.39989831,101960.0,101950.0,0.12609862]
[1738121471868,0.39831831,101960.0,101950.0,0.12609862]
[1738121472066,0.39831831,101960.0,101950.0,0.22908962]
[1738121472268,0.39831831,101960.0,101950.0,0.12609862]
[1738121472536,0.37531831,101960.0,101950.0,0.32633278]
[1738121474530,0.153,101960.0,101950.0,0.32633278]
[1738121477040,0.003,101960.0,101950.0,0.33409278]
[1738121477246,0.003,101960.0,101950.0,0.36457392]
[1738121477491,0.003,101960.0,101950.0,0.46272822]
[1738121478069,0.431371,101970.0,101960.0,0.185581]
[1738121478384,0.431371,101970.0,101960.0,0.28282416]
[1738121479212,0.3284,101970.0,101960.0,0.28282416]
[1738121479807,0.3284,101970.0,101960.0,0.32912416]
[1738121480522,0.3314,101970.0,101960.0,0.32912416]
[1738121480675,0.3284,101970.0,101960.0,0.35959257]
[1738121481121,0.86895027,101990.0,101970.0,0.456948]
[1738121481291,0.63856727,101990.0,101970.0,0.55419116]
[1738121481695,0.0001424,101980.0,101970.0,0.216691]
[1738121481915,0.01848204,101980.0,101970.0,0.36193416]
[1738121482805,0.01848204,101980.0,101970.0,0.39238339]
[1738121483017,0.0001424,101980.0,101970.0,0.39238339]
[1738121487407,0.0001424,101980.0,101970.0,0.99935441]
[1738121487612,0.0001424,101980.0,101970.0,1.26027172]
[1738121487823,0.00014196,101990.0,101980.0,0.33677831]
[1738121488027,0.00014196,101990.0,101980.0,1.70506919]
[1738121489015,0.00014196,101990.0,101980.0,1.72282919]
[1738121490362,0.00114196,101990.0,101980.0,1.71506919]
[1738121490547,0.00114196,101990.0,101980.0,1.72282919]
[1738121492311,0.00114196,101990.0,101980.0,1.74252594]
[1738121493038,0.00128436,101990.0,101980.0,1.74252594]
[1738121493459,0.00128436,101990.0,101980.0,2.59842594]
[1738121497742,0.0001423,102020.0,102010.0,0.183131]
[1738121497948,0.0001423,102020.0,102010.0,1.47286045]
[1738121498140,0.0001423,102020.0,102010.0,1.36096295]
[1738121500101,0.00028434,102020.0,102010.0,1.36096295]
[1738121500964,0.00128434,102020.0,102010.0,1.36096295]
[1738121501577,0.00028434,102020.0,102010.0,1.36096295]
[1738121502015,0.00028434,102020.0,102010.0,1.36296295]
[1738121502730,0.00028434,102020.0,102010.0,1.55254344]
[1738121503636,0.00028434,102020.0,102010.0,1.55054344]
[1738121504022,0.00028434,102020.0,102010.0,1.55454344]
[1738121504650,0.00028434,102020.0,102010.0,1.58213609]
[1738121504999,0.00028434,102020.0,102010.0,1.592086]
[1738121505323,0.00028434,102020.0,102010.0,1.914086]
[1738121505731,0.00028434,102020.0,102010.0,2.074086]
[1738121506364,0.00028434,102020.0,102010.0,2.084086]
[1738121507828,0.1214424,102050.0,102040.0,0.1029]
[1738121508092,0.1214424,102050.0,102040.0,0.20014316]
[1738121508282,0.0001424,102050.0,102040.0,0.20277685]
[1738121509685,0.01838884,102050.0,102040.0,0.20277685]
[1738121510265,0.02238884,102050.0,102040.0,0.20277685]
[1738121510722,0.0041424,102050.0,102040.0,0.20277685]
[1738121512619,0.0041424,102050.0,102040.0,0.23302955]
[1738121513044,0.0041424,102050.0,102040.0,0.2525178]
[1738121528887,0.00029883,102060.0,102040.0,0.93031643]
[1738121529109,0.00044369,102060.0,102050.0,0.31203025]
[1738121529314,0.00044369,102060.0,102050.0,1.55144966]
[1738121529695,0.00044369,102060.0,102050.0,1.55477775]
[1738121530300,0.00044369,102060.0,102050.0,1.44386044]
[1738121530524,0.00744369,102060.0,102050.0,1.44486044]
[1738121533268,0.00744369,102060.0,102050.0,1.55577775]
[1738121533423,0.00744369,102060.0,102050.0,1.44486044]
[1738121535221,0.00744369,102060.0,102050.0,1.45258044]
[1738121535985,0.00744369,102060.0,102050.0,1.56349775]
[1738121538695,0.00744369,102060.0,102050.0,1.57314115]
[1738121542566,0.00744369,102060.0,102050.0,1.46222384]
[1738121543728,0.00744369,102060.0,102050.0,1.33262384]
[1738121547075,0.00744369,102060.0,102050.0,1.41292384]
[1738121552715,0.00744369,102060.0,102050.0,1.57322267]
[1738121557976,0.00744369,102060.0,102050.0,1.56322267]
[1738121558185,0.00744369,102060.0,102050.0,1.57322267]
[1738121559423,0.00744369,102060.0,102050.0,0.59072848]
[1738121561742,0.00744369,102060.0,102050.0,0.51042848]
[1738121562712,0.00744369,102060.0,102050.0,0.34270848]
[1738121562915,0.00744369,102060.0,102050.0,0.35042848]
[1738121563096,0.00744369,102060.0,102050.0,0.35092848]
[1738121565983,0.00744369,102060.0,102050.0,0.34320848]
[1738121566181,0.00744369,102060.0,102050.0,0.35092848]
[1738121569832,0.00744369,102060.0,102050.0,0.42355106]
[1738121572735,0.00734369,102060.0,102050.0,0.42355106]
[1738121573124,0.00734369,102060.0,102050.0,0.35092848]
[1738121573751,0.00734369,102060.0,102050.0,0.34320848]
[1738121573943,0.00734369,102060.0,102050.0,0.35092848]
[1738121585261,0.00734369,102060.0,102050.0,0.57355106]
[1738121585501,0.00734369,102060.0,102050.0,0.65375106]
[1738121588403,0.00734369,102060.0,102050.0,0.97575106]
[1738121589863,0.00734369,102060.0,102050.0,0.89555106]
[1738121599988,0.00734369,102060.0,102050.0,0.82292848]
[1738121601133,0.00734369,102060.0,102050.0,0.89555106]
[1738121601930,0.00734369,102060.0,102050.0,0.82292848]
[1738121602968,0.00734369,102060.0,102050.0,0.89555106]
[1738121604939,0.00734369,102060.0,102050.0,0.88783106]
[1738121605166,0.00734369,102060.0,102050.0,0.89555106]
[1738121623539,0.00734369,102060.0,102050.0,0.82292848]
[1738121624497,0.00734369,102060.0,102050.0,0.89555106]
[1738121625265,0.00734369,102060.0,102050.0,0.82292848]
[1738121625840,0.00734369,102060.0,102050.0,0.89555106]
[1738121626877,0.00734369,102060.0,102050.0,0.82292848]
[1738121627654,0.13774369,102060.0,102050.0,0.67292848]
[1738121630189,0.13774369,102060.0,102050.0,0.35092848]
[1738121630749,0.13774369,102060.0,102050.0,0.42355106]
[1738121632423,0.00734369,102060.0,102050.0,0.42355106]
[1738121634036,0.00734369,102060.0,102050.0,0.65095106]
[1738121635314,0.00734369,102060.0,102050.0,1.06557364]
[1738121637207,0.00734369,102060.0,102050.0,0.99295106]
[1738121639817,0.00734369,102060.0,102050.0,1.06557364]
[1738121640193,0.00734369,102060.0,102050.0,0.99295106]
[1738121640397,0.00734369,102060.0,102050.0,0.98295106]
[1738121641016,0.00734369,102060.0,102050.0,0.90555106]
[1738121642046,0.00734369,102060.0,102050.0,0.89555106]
[1738121642274,0.00734369,102060.0,102050.0,0.90555106]
[1738121645738,0.00734369,102060.0,102050.0,0.88783106]
[1738121646125,0.00734369,102060.0,102050.0,0.89555106]
[1738121646328,0.08804369,102060.0,102050.0,0.89555106]
[1738121646642,0.08804369,102060.0,102050.0,0.67292848]
[1738121650815,0.08804369,102060.0,102050.0,0.35092848]
[1738121651807,0.08804369,102060.0,102050.0,0.34320848]
[1738121651981,0.08804369,102060.0,102050.0,0.35092848]
[1738121653203,0.08804369,102060.0,102050.0,0.42355106]
[1738121657039,0.00734369,102060.0,102050.0,0.42355106]
[1738121670034,0.00734369,102060.0,102050.0,0.44355106]
[1738121673660,0.00734369,102060.0,102050.0,0.60355106]
[1738121673901,0.00734369,102060.0,102050.0,0.68395106]
[1738121674743,0.00734369,102060.0,102050.0,1.00595106]
[1738121675405,0.00734369,102060.0,102050.0,1.01595106]
[1738121676396,0.00734369,102060.0,102050.0,0.93555106]
[1738121676577,0.00734369,102060.0,102050.0,0.92555106]
[1738121677324,0.00734369,102060.0,102050.0,1.01155106]
[1738121681195,0.00734369,102060.0,102050.0,1.00383106]
[1738121681378,0.00734369,102060.0,102050.0,1.01155106]
[1738121682035,0.00734369,102060.0,102050.0,1.00155106]
[1738121682211,0.00734369,102060.0,102050.0,0.92555106]
[1738121683107,0.00734369,102060.0,102050.0,0.91555106]
[1738121683311,0.00734369,102060.0,102050.0,0.92555106]
[1738121683534,0.00734369,102060.0,102050.0,0.91555106]
[1738121687410,0.00734369,102060.0,102050.0,0.92555106]
[1738121687848,0.00734369,102060.0,102050.0,0.91783106]
[1738121688081,0.13494369,102060.0,102050.0,0.69304848]
[1738121688614,0.13494369,102060.0,102050.0,0.76567106]
[1738121688821,0.13494369,102060.0,102050.0,0.68520848]
[1738121689026,0.13494369,102060.0,102050.0,0.76571106]
[1738121689630,0.13494369,102060.0,102050.0,0.69308848]
[1738121691163,0.13494369,102060.0,102050.0,0.76571106]
[1738121692386,0.13494369,102060.0,102050.0,0.44371106]
[1738121692784,0.13494369,102060.0,102050.0,0.37108848]
[1738121695071,0.13494369,102060.0,102050.0,0.37100848]
[1738121695916,0.00734369,102060.0,102050.0,0.44363106]
[1738121696619,0.00734369,102060.0,102050.0,0.37100848]
[1738121698656,0.00734369,102060.0,102050.0,0.36320848]
[1738121698865,0.00734369,102060.0,102050.0,0.37108848]
[1738121699348,0.08484369,102060.0,102050.0,0.37108848]
[1738121703994,0.08484369,102060.0,102050.0,0.44371106]
[1738121704891,0.08484369,102060.0,102050.0,0.37108848]
[1738121709776,0.08484369,102060.0,102050.0,0.36776039]
[1738121709981,0.08484369,102060.0,102050.0,0.3703991]
[1738121713843,0.00734369,102060.0,102050.0,0.3703991]
[1738121716271,0.13664369,102060.0,102050.0,0.3625191]
[1738121716470,0.20926627,102060.0,102050.0,0.29998429]
[1738121717509,0.38476885,102060.0,102050.0,0.19709429]
[1738121717714,0.39476885,102060.0,102050.0,0.19709429]
[1738121718032,0.39476885,102060.0,102050.0,0.09904199]
[1738121718420,0.32214627,102060.0,102050.0,0.09904199]
[1738121718619,0.39476885,102060.0,102050.0,0.09904199]
[1738121719203,0.32214627,102060.0,102050.0,0.09904199]
[1738121720525,0.39476885,102060.0,102050.0,0.09904199]
[1738121722196,0.54476885,102060.0,102050.0,0.09904199]
[1738121722396,0.53476885,102060.0,102050.0,0.09904199]
[1738121724188,0.46214627,102060.0,102050.0,0.09904199]
[1738121725615,0.53476885,102060.0,102050.0,0.09904199]
[1738121725970,0.46214627,102060.0,102050.0,0.09904199]
[1738121727519,0.53476885,102060.0,102050.0,0.09904199]
[1738121730033,0.13664369,102060.0,102050.0,0.20193199]
[1738121730232,0.14664369,102060.0,102050.0,0.20193199]
[1738121734751,0.01734369,102060.0,102050.0,0.29999039]
[1738121736448,0.00734369,102060.0,102050.0,0.29999039]
[1738121739042,0.00734369,102060.0,102050.0,0.45211297]
[1738121739962,0.00734369,102060.0,102050.0,0.85355248]
[1738121740208,0.00734369,102060.0,102050.0,1.00355248]
[1738121745733,0.00034369,102060.0,102050.0,1.00255248]
[1738121745935,0.00034369,102060.0,102050.0,1.00455248]
[1738121748443,0.00034369,102060.0,102050.0,1.07717506]
[1738121749033,0.00034369,102060.0,102050.0,1.00455248]
[1738121749239,0.00034369,102060.0,102050.0,1.07717506]
[1738121749845,0.00034369,102060.0,102050.0,1.00455248]
[1738121750385,0.00034369,102060.0,102050.0,1.07717506]
[1738121755939,0.00034369,102060.0,102050.0,1.00455248]
[1738121756874,0.00034369,102060.0,102050.0,1.07717506]
[1738121758498,0.00034369,102060.0,102050.0,0.87595248]
[1738121758673,0.00034369,102060.0,102050.0,0.88375248]
[1738121768578,0.00034369,102060.0,102050.0,0.73375248]
[1738121772448,0.00034369,102060.0,102050.0,0.72595248]
[1738121772653,0.00034369,102060.0,102050.0,0.73367248]
[1738121776789,0.00034369,102060.0,102050.0,0.81187248]
[1738121776963,0.00034369,102060.0,102050.0,0.80415248]
[1738121777162,0.00034369,102060.0,102050.0,0.81187248]
[1738121779249,0.00034369,102060.0,102050.0,0.88449506]
[1738121779450,0.00034369,102060.0,102050.0,0.81187248]
[1738121780165,0.00034369,102060.0,102050.0,0.96187248]
[1738121784053,0.00034369,102060.0,102050.0,0.96078565]
[1738121784688,0.00034369,102060.0,102050.0,0.95200798]
[1738121784902,0.00034369,102060.0,102050.0,0.95972798]
[1738121785118,0.00034369,102060.0,102050.0,0.88152798]
[1738121785361,0.08094369,102060.0,102050.0,0.88047016]
[1738121785752,0.00034369,102060.0,102050.0,0.88047016]
[1738121788292,0.08094369,102060.0,102050.0,0.88047016]
[1738121788879,0.08094369,102060.0,102050.0,0.65012758]
[1738121789084,0.13024369,102060.0,102050.0,0.65784758]
[1738121790426,0.13024369,102060.0,102050.0,0.33584758]
[1738121796969,0.13024369,102060.0,102050.0,0.32812758]
[1738121797178,0.13024369,102060.0,102050.0,0.33584758]
[1738121802600,0.13024369,102060.0,102050.0,0.32812758]
[1738121802813,0.13024369,102060.0,102050.0,0.33584758]
[1738121805867,0.14328229,102060.0,102050.0,0.32812758]
[1738121806073,0.20286627,102060.0,102050.0,0.33584758]
[1738121806283,0.30574627,102060.0,102050.0,0.30074379]
[1738121806686,0.13024369,102060.0,102050.0,0.30074379]
[1738121808134,0.13024369,102060.0,102050.0,0.29874379]
[1738121808576,0.13124369,102060.0,102050.0,0.29874379]
[1738121810535,0.30674627,102060.0,102050.0,0.29874379]
[1738121810718,0.31674627,102060.0,102050.0,0.19585379]
[1738121817772,0.3263563,102060.0,102050.0,0.19585379]
[1738121817980,0.3253563,102060.0,102050.0,0.19585379]
[1738121818211,0.3293563,102060.0,102050.0,0.19585379]
[1738121822459,0.3293563,102060.0,102050.0,0.29874379]
[1738121822826,0.14424369,102060.0,102050.0,0.29874379]
[1738121825181,0.01434369,102060.0,102050.0,0.29874379]
[1738121826790,0.01434369,102060.0,102050.0,0.37404379]
[1738121827001,0.01434369,102060.0,102050.0,0.44666637]
[1738121827002,0.00434369,102060.0,102050.0,0.44666637]
[1738121827214,0.00034369,102060.0,102050.0,0.47703394]
[1738121827415,0.00434369,102060.0,102050.0,0.47703394]
[1738121827929,0.00534369,102060.0,102050.0,0.47703394]
[1738121828246,0.00034369,102060.0,102050.0,0.47703394]
[1738121828680,0.00034369,102060.0,102050.0,0.47903394]
[1738121830229,0.00034369,102060.0,102050.0,0.48695394]
[1738121831857,0.00034369,102060.0,102050.0,0.30862379]
[1738121833524,0.00034369,102060.0,102050.0,0.30662379]
[1738121833666,0.00134369,102060.0,102050.0,0.30662379]
[1738121834735,0.00134369,102060.0,102050.0,0.29874379]
[1738121834883,0.00134369,102060.0,102050.0,0.30662379]
[1738121841021,0.00134369,102060.0,102050.0,0.37924637]
[1738121842380,0.00134369,102060.0,102050.0,0.30662379]
[1738121844591,0.00134369,102060.0,102050.0,0.30658379]
[1738121847883,0.00134369,102060.0,102050.0,0.29874379]
[1738121848089,0.00134369,102060.0,102050.0,0.30654379]
[1738121848416,0.00134369,102060.0,102050.0,0.37916637]
[1738121849618,0.00034369,102060.0,102050.0,0.37916637]
[1738121849834,0.00034369,102060.0,102050.0,0.63624641]
[1738121850033,0.00134369,102060.0,102050.0,0.75486899]
[1738121850250,0.00034369,102060.0,102050.0,0.75486899]
[1738121850611,0.00034369,102060.0,102050.0,0.75686899]
[1738121851435,0.00034369,102060.0,102050.0,0.75486899]
[1738121851971,0.00034369,102060.0,102050.0,0.75986899]
[1738121858760,0.00034369,102060.0,102050.0,1.08186899]
[1738121867052,0.00034369,102060.0,102050.0,0.88650641]
[1738121869062,0.00034369,102060.0,102050.0,0.90650641]
[1738121880008,0.00034369,102060.0,102050.0,1.06142899]
[1738121881589,6.9e-07,102060.0,102050.0,1.08442899]
[1738121881797,6.9e-07,102060.0,102050.0,1.21255157]
[1738121882387,6.9e-07,102060.0,102050.0,1.13992899]
[1738121882590,6.9e-07,102060.0,102050.0,1.67382899]
[1738121883012,6.9e-07,102060.0,102050.0,1.66382899]
[1738121884061,6.9e-07,102060.0,102050.0,1.64082899]